Cogmind - Beta 13 X1 @@@ ROGUE MODE // 2023.08.26 @ 09:38:46 Player: VR-DUX Result: Destroyed by D-53 Grenadier with Mini Grenade Launcher Performance ------------- Evolutions (1) 500 Regions Visited (4) 800 Robots Destroyed (69) 345 Value Destroyed (1655) 1655 Prototype IDs (0) 0 Alien Tech Used (0) 0 Bonus (24) 24 TOTAL SCORE: 3324 Bonus ------- High Alert Combat Kills 46 Friendly Fire -22 Cogmind --------- Core Integrity 0/400 Matter 247/300 Energy 78/100 System Corruption 5% Temperature Cool (0) Movement Treading (160) Location -9/Mines Parts ------- > --- POWER (1) -------- (None) > --- PROPULSION (3) --- Light Treads Light Treads > --- UTILITY (3) ------ Large Storage Unit Structural Scanner Signal Interpreter > --- WEAPON (2) ------- Heavy EM Pulse Gun Flak Cannon > --- INVENTORY (15) --- Light Nuclear Core Light Treads Light Treads Compact Wheel Cesium-ion Thruster Cesium-ion Thruster Cesium-ion Thruster Cesium-ion Thruster Small Storage Unit Medium Storage Unit Hacking Suite Shock Bomb Launcher Grenade Launcher Heavy Hammer Peak State ------------ > --- POWER ------------ Ion Engine > --- PROPULSION ------- Light Treads Light Treads Light Treads > --- UTILITY ---------- Large Storage Unit Structural Scanner Signal Interpreter > --- WEAPON ----------- Heavy Assault Rifle Flak Cannon > --- INVENTORY -------- Light Nuclear Core Light Treads Light Treads Compact Wheel Cesium-ion Thruster Cesium-ion Thruster Cesium-ion Thruster Cesium-ion Thruster Small Storage Unit Medium Storage Unit Hacking Suite Heavy EM Pulse Gun Shock Bomb Launcher Grenade Launcher Heavy Hammer [Rating: 15] Favorites ----------- Power Ion Engine Engine Ion Engine Propulsion Light Treads Treads Light Treads Leg Aluminum Leg Utility Large Storage Unit Device Structural Scanner Storage Large Storage Unit Processor Signal Interpreter Weapon Heavy Assault Rifle Energy Gun EM Pulse Gun Ballistic Gun Heavy Assault Rifle Ballistic Cannon Light Cannon Launcher Grenade Launcher Impact Weapon Heavy Hammer Slashing Weapon Mining Claw Build | -11 -10 -10 -9 -9 ------- Run | Jun Mat Min Mat Min Slots Evolved 2 | . . . 2 . Power . | . . . . . Propulsion 1 | . . . 1 . Utility 1 | . . . 1 . Weapon . | . . . . . Parts Attached 72 | 1 19 5 45 2 Power 11 | . 3 1 7 . Engine 11 | . 3 1 7 . Core . | . . . . . Reactor . | . . . . . Propulsion 28 | . 6 2 20 . Treads 22 | . . 2 20 . Leg 6 | . 6 . . . Wheel . | . . . . . Hover . | . . . . . Flight . | . . . . . Utility 12 | 1 4 1 6 . Device 5 | 1 2 . 2 . Storage 4 | . 1 . 3 . Processor 3 | . 1 1 1 . Hackware . | . . . . . Protection . | . . . . . Artifact . | . . . . . Weapon 21 | . 6 1 12 2 Energy Gun 5 | . 4 . . 1 Energy Cannon . | . . . . . Ballistic Gun 6 | . 1 1 4 . Ballistic Cannon 4 | . . . 3 1 Launcher 3 | . 1 . 2 . Special Weapon . | . . . . . Impact Weapon 2 | . . . 2 . Slashing Weapon 1 | . . . 1 . Piercing Weapon . | . . . . . Special Melee Weapon . | . . . . . Unidentified Prototypes . | . . . . . Parts Lost 10 | . 1 1 5 3 Power 2 | . . . 1 1 Propulsion 1 | . . . . 1 Utility 2 | . . . 2 . Weapon 5 | . 1 1 2 1 Highest Loss Streak 3 | . 1 1 2 3 To Critical Strikes . | . . . . . Average Slot Usage (%) 98 | . 99 100 97 99 Engine 12 | . 14 14 9 10 Treads 17 | . . 11 32 33 Leg 13 | . 28 16 . . Device 14 | . 13 12 15 11 Storage 13 | . 14 14 11 11 Processor 2 | . . 1 4 11 Energy Gun 8 | . 18 10 . . Ballistic Gun 7 | . 8 3 9 10 Ballistic Cannon 1 | . . . 2 . Launcher 4 | . . 14 . . Impact Weapon 1 | . . . 2 10 Slashing Weapon 2 | . . . 7 . Naked Turns . | . . . . . Heaviest Build 35 | 15 31 34 35 32 Greatest Support 60 | 20 20 40 60 60 Greatest Overweight (x) 1 | . 1 1 . . Average Overweight (x) . | . . . . . Largest Inventory Capacity 15 | 8 15 15 15 15 Average Capacity 14 | 8 14 15 15 15 Most Carried 15 | 6 15 15 15 15 Average Carried 14 | 6 14 14 14 14 Final Capacity 15 | 8 15 15 15 15 Final Carried 15 | 6 15 14 15 14 Class Distribution -------------------- 57% | Scavenger-Mutant 42% | Mutant Dominant Class ---------------- Scavenger-Mutant | -10/Materials Mutant | -10/Mines Scavenger-Mutant | -9/Materials Scavenger-Mutant | -9/Mines Resources | -11 -10 -10 -9 -9 ----------- Run | Jun Mat Min Mat Min Matter Collected 1812 | 222 285 172 1133 . Remotely . | . . . . . Salvage Created 2615 | 66 917 303 1329 . Parts 164 | 7 49 23 85 . Haulers Intercepted 3 | . . . 3 . Recyclers Shooed 2 | . . 1 1 . Parts Field Recycled . | . . . . . Retrieved Matter . | . . . . . Parts Self-Destructed . | . . . . . Prevented . | . . . . . Kills | -11 -10 -10 -9 -9 ------- Run | Jun Mat Min Mat Min Combat Hostiles Destroyed 46 | . 13 8 25 . Guns 30 | . 13 4 13 . Cannons 7 | . . . 7 . AOE 9 | . . 4 5 . Classes Destroyed 11 | 2 5 1 3 . Worker 3 | . 2 . 1 . Builder 3 | . 1 1 1 . Tunneler 3 | 1 . 1 1 . Hauler 3 | . . . 3 . Recycler 8 | 1 3 1 3 . Operator 1 | . 1 . . . Watcher 2 | . 1 . 1 . Swarmer 10 | . . 6 4 . Grunt 24 | . 13 2 9 . Brawler 3 | . . . 3 . Sentry 9 | . . . 9 . Best Kill Streak 5 | 2 3 5 4 . Combat Bots Only 5 | . 3 5 4 . Max Kills in Single Turn 3 | 1 2 2 3 . Gunslinging 1 | . 1 . . . Exploded 3 | . . 2 3 . Melee . | . . . . . Uniques/NPCs Destroyed . | . . . . . Combat | -11 -10 -10 -9 -9 -------- Run | Jun Mat Min Mat Min Damage Taken 3083 | . 616 237 1784 446 Core 580 | . 102 61 351 66 Absorbed by Shields . | . . . . . Regen/Repaired (Parts) 91 | . . . 91 . Core Remaining (%) 67 | 100 . 34 . . Volleys Fired 273 | 4 78 25 164 2 Largest 2 | 2 2 1 2 1 Hottest 90 | 70 90 40 67 23 Shots Fired 358 | 8 145 29 173 3 Gun 293 | 8 145 25 112 3 Cannon 57 | . . . 57 . Launcher 8 | . . 4 4 . Special . | . . . . . Kinetic 226 | 4 43 7 169 3 Thermal 86 | 4 82 . . . Explosive 8 | . . 4 4 . Electromagnetic 38 | . 20 18 . . Robot Hit Streak 12 | 2 12 5 10 . Robot Miss Streak 7 | 1 7 3 7 2 Penetration Max . | . . . . . Secondary Targets 2 | . 2 . . . Max Gunslinging Chain 1 | . 1 . . . Shots Hit Robots 209 | 4 77 16 112 . Core Hits 115 | 3 42 15 55 . Critical Kills 1 | . . . 1 . Critical Parts Destroyed . | . . . . . Critical Strikes 3 | . . 1 2 . Destroy 1 | . . . 1 . Blast 1 | . . . 1 . Corrupt 1 | . . 1 . . Melee Attacks 23 | . . . 21 2 Impact 6 | . . . 4 2 Slashing 17 | . . . 17 . Piercing . | . . . . . Sneak Attacks . | . . . . . Combat Hostiles . | . . . . . Follow-up Attacks . | . . . . . Damage Inflicted 3646 | 53 1037 429 2105 22 Guns 2521 | 53 1037 227 1182 22 Cannons 581 | . . . 581 . Explosions 537 | . . 195 342 . Melee . | . . . . . Ramming 7 | . . 7 . . Kinetic 2194 | 15 332 62 1763 22 Thermal 670 | 38 632 . . . Explosive 537 | . . 195 342 . Electromagnetic 238 | . 73 165 . . Impact . | . . . . . Slashing . | . . . . . Piercing . | . . . . . Highest Corruption 5 | . 3 3 5 5 Average Corruption 2 | . 1 3 3 5 Corruption Purged . | . . . . . Corruption Blocked . | . . . . . Effects 84 | . 14 26 39 5 Message Errors 18 | . 2 10 5 1 Matter Fused 20 | . 3 3 13 1 Heat Flow Errors 7 | . 1 2 4 . Energy Discharges 11 | . 4 . 7 . Parts Fused 1 | . . . 1 . Data Loss (minor) 10 | . 3 1 5 1 Data Loss (major) 5 | . 1 2 2 . Misfires 7 | . . 4 2 1 Alerts 5 | . . 4 . 1 Overload Shots . | . . . . . Overflow Damage 17 | . . . 17 . Projectiles 7 | . . . 7 . Explosions 10 | . . . 10 . Melee . | . . . . . Knockbacks 6 | . . . 6 . Impact . | . . . . . Kinetic 6 | . . . 6 . Secondary . | . . . . . Self-Inflicted Damage . | . . . . . Shots . | . . . . . Rammed 2 | . . 2 . . Targets Rammed 4 | . 1 3 . . Kicked 2 | . 1 1 . . Crushed . | . . . . . Highest Temperature 272 | 18 212 247 272 . Average Temperature 65 | 8 53 105 92 . Received Heat Transfer 1032 | . 345 102 585 . Siege Activations . | . . . . . Robots Corrupted . | . . . . . Combat Hostiles . | . . . . . Parts Fried . | . . . . . Impact Corruptions . | . . . . . Robots Melted . | . . . . . Combat Hostiles . | . . . . . Parts Melted 3 | . 3 . . . Heat Transferred 1676 | 111 1565 . . . Parts Sabotaged . | . . . . . Parts Stolen . | . . . . . Parts Stripped . | . . . . . Power Chain Reactions . | . . . . . Missiles Intercepted . | . . . . . Alert | -11 -10 -10 -9 -9 ------- Run | Jun Mat Min Mat Min Peak Influence 525 | 10 328 181 525 154 Initial 154 | . 6 70 23 154 Average 180 | 7 197 56 263 151 Maximum Alert Level 2 | . 1 . 2 . Low Security (%) 57 | 100 36 100 37 100 Level 1 32 | . 63 . 35 . Level 2 10 | . . . 27 . Level 3 . | . . . . . Level 4 . | . . . . . Level 5 . | . . . . . High Security . | . . . . . Max Security . | . . . . . Squads Dispatched 6 | . 4 . 2 . Investigation 3 | . 2 . 1 . Extermination . | . . . . . Reinforcement 3 | . 2 . 1 . Assault . | . . . . . Garrison . | . . . . . Intercept . | . . . . . Searches Triggered . | . . . . . Construction Impeded . | . . . . . Haulers Reinforced . | . . . . . Active Scanning Responses . | . . . . . Cargo Convoy Interrupts . | . . . . . Stealth | -11 -10 -10 -9 -9 --------- Run | Jun Mat Min Mat Min Distress Signals 3 | . . . 3 . Communications Jammed . | . . . . . Distress Signals . | . . . . . Times Spotted 79 | . 28 8 41 2 Peak Tracking Total 5 | . 4 3 5 2 Tactical Retreats 5 | . 2 1 2 . Traps | -11 -10 -10 -9 -9 ------- Run | Jun Mat Min Mat Min Traps Triggered 4 | . 2 . 2 . Indirectly . | . . . . . Trap Hack Attempts . | . . . . . Triggered . | . . . . . Disarmed . | . . . . . Reprogrammed . | . . . . . Reused . | . . . . . Traps Extracted . | . . . . . Installed . | . . . . . Triggered . | . . . . . Machines | -11 -10 -10 -9 -9 ---------- Run | Jun Mat Min Mat Min Machines Disabled 2 | . . 2 . . Max in Single Turn 1 | . . 1 . . Machines Repaired . | . . . . . Machines Sabotaged . | . . . . . Overloaded Fab Kills . | . . . . . Hacking | -11 -10 -10 -9 -9 --------- Run | Jun Mat Min Mat Min Machines Accessed 12 | . 6 1 5 . Terminals 8 | . 4 1 3 . Fabricators . | . . . . . Repair Stations 1 | . . . 1 . Recycling Units 3 | . 2 . 1 . Scanalyzers . | . . . . . Garrison Access . | . . . . . Total Hacks 26 | . 12 1 13 . Successful 15 | . 6 1 8 . Failed 10 | . 5 . 5 . Catastrophic . | . . . . . Database Lockouts 1 | . 1 . . . Manual 19 | . 18 . 1 . Terminals 19 | . 10 1 8 . Fabricators . | . . . . . Repair Stations 3 | . . . 3 . Recycling Units 4 | . 2 . 2 . Scanalyzers . | . . . . . Garrison Access . | . . . . . Terminal Hacks 10 | . 4 1 5 . Record 2 | . . . 2 . Robot Analysis 4 | . 4 . . . Unreport Threat 1 | . . . 1 . Locate Traps 2 | . . . 2 . Zone Layout 1 | . . 1 . . Fabricator Hacks . | . . . . . Repair Station Hacks 2 | . . . 2 . Scan Component 1 | . . . 1 . Repair 1 | . . . 1 . Recycling Unit Hacks 3 | . 2 . 1 . Retrieve Components 3 | . 2 . 1 . Scanalyzer . | . . . . . Garrison Access Hacks . | . . . . . Unauthorized Hacks . | . . . . . Terminals . | . . . . . Fabricators . | . . . . . Repair Stations . | . . . . . Recycling Units . | . . . . . Scanalyzers . | . . . . . Garrison Access . | . . . . . Data Cores Recovered . | . . . . . Used . | . . . . . Hacking Detections 12 | . 7 1 4 . Full Trace Events 6 | . 4 . 2 . Feedback Events . | . . . . . Feedback Blocked . | . . . . . Robot Schematics Acquired . | . . . . . Robots Built . | . . . . . Authchips . | . . . . . Time . | . . . . . Total Robot Build Rating . | . . . . . Part Schematics Acquired . | . . . . . Parts Built . | . . . . . Authchips . | . . . . . Time . | . . . . . Total Part Build Rating . | . . . . . Parts Repaired 1 | . . . 1 . Time 26 | . . . 26 . Parts Recycled . | . . . . . Recycled Matter . | . . . . . Retrieved Matter . | . . . . . Retrieved Components 19 | . 9 . 10 . Parts Scanalyzed . | . . . . . Part Schematics Acquired . | . . . . . Parts Damaged . | . . . . . Bothacking | -11 -10 -10 -9 -9 ------------ Run | Jun Mat Min Mat Min Used RIF Installer . | . . . . . Robots Hacked . | . . . . . Non-combat . | . . . . . Combat . | . . . . . Robot Hacks Applied . | . . . . . Relay Couplers Released . | . . . . . Fabnet Peak Effective % . | . . . . . Robots Rewired . | . . . . . Allies Hacked . | . . . . . Hacks Repelled . | . . . . . Allies | -11 -10 -10 -9 -9 -------- Run | Jun Mat Min Mat Min Total Allies 1 | . . . . 1 Largest Group 1 | . . . . 1 Highest-Rated Group 31 | . . . . 31 Highest-Rated Ally 31 | . . . . 31 Total Orders . | . . . . . Ally Attacks 5 | . . . . 5 Total Damage 82 | . . . . 82 Kills . | . . . . . Allies Corrupted . | . . . . . Allies Melted . | . . . . . Intel | -11 -10 -10 -9 -9 ------- Run | Jun Mat Min Mat Min Robot Analysis Total 4 | . 4 . . . Derelict Logs Recovered 1 | . . 1 . . Drone Launches . | . . . . . Drone Recoveries . | . . . . . Exploration | -11 -10 -10 -9 -9 ------------- Run | Jun Mat Min Mat Min Turns Passed 5631 | 38 1644 1594 2189 166 Spaces Moved 2708 | 21 722 845 1024 96 Core . | . . . . . Treads 1500 | . . 380 1024 96 Legs 1208 | 21 722 465 . . Wheels . | . . . . . Hover . | . . . . . Flight . | . . . . . Fastest Speed 120 | 120 120 160 160 160 Average Speed 172 | 120 188 176 160 160 Slowest Speed 190 | 120 190 190 160 160 Overloaded Moves . | . . . . . Propulsion Burnouts . | . . . . . Robots Hopped . | . . . . . Cave-ins Triggered . | . . . . . Exploration Rate (%) 61 | 2 98 99 83 23 Regions Visited 4 Branch Regions 2 Pre-discovered Areas 1 | . . 1 . . Known Exits Taken 3 | . 1 1 1 . Unknown Exits Taken 1 | 1 . . . . Scrap Searched 2 | . . 2 . . Spaces Dug 19 | . . . 18 1 Terrain Destroyed 68 | . . 30 37 1 Melee 10 | . . . 9 1 Projectile . | . . . . . AOE 58 | . . 30 28 . Terrain Rammed . | . . . . . Walls Destroyed . | . . . . . Machines Disabled . | . . . . . Actions | -11 -10 -10 -9 -9 --------- Run | Jun Mat Min Mat Min Total 3270 | 25 859 923 1361 102 Wait 106 | . 11 33 62 . Move 2704 | 20 721 844 1023 96 Hop . | . . . . . Pick Up 37 | . 13 6 18 . Fast Attach 14 | 1 4 . 9 . Attach 10 | . 1 3 5 1 Detach 1 | . 1 . . . Swap 48 | . 14 2 31 1 Drop 50 | . 15 7 28 . Fire 273 | 4 78 25 164 2 Melee 23 | . . . 21 2 Ram . | . . . . . Kick 2 | . 1 1 . . Crush 2 | . . 2 . . Escape Stasis . | . . . . . Rewire . | . . . . . Trap . | . . . . . Miscellaneous . | . . . . . Route ------- -11/Junkyard -10/Materials (discovered 6 exits: *Mat x3 / *Min x2 / *Sub) -10/Mines (discovered 3 exits: *Mat x2 / *Sub) -9/Materials (discovered 3 exits: [*Mat] / *Min / *Sto) -9/Mines (discovered 1 exit: [*Mat]) History --------- Turn | Location | Event 7 | -11/Junkyard | Discovered new exit (range 3) 39 | -11/Junkyard | Entered Materials 301 | -10/Materials | Build established: Mutant 326 | -10/Materials | Discovered new exit (range 6) 566 | -10/Materials | Discovered new exit (range 15) 725 | -10/Materials | Discovered new exit (range 15) 769 | -10/Materials | Build established: Scavenger-Mutant 944 | -10/Materials | Discovered new exit (range 9) 1157 | -10/Materials | Discovered new exit (range 7) 1204 | -10/Materials | Identified exit to Mines 1344 | -10/Materials | Discovered new exit (range 11) 1566 | -10/Materials | Central database locked down 1670 | -10/Materials | Build established: Mutant 1683 | -10/Materials | Entered Mines 1688 | -10/Mines | Met a Derelict bent on vengeance 1718 | -10/Mines | Core integrity fell below 50% 2108 | -10/Mines | Discovered new exit (range 12) 2324 | -10/Mines | Found a hidden stash of uninstalled traps 2596 | -10/Mines | Joined a pair of Derelicts in attacking an 0b10 outpost 3062 | -10/Mines | Discovered new exit (range 8) 3086 | -10/Mines | Identified exit to Materials 3212 | -10/Mines | Discovered new exit (range 6) 3219 | -10/Mines | Identified exit to Subcaves 3277 | -10/Mines | Entered Materials 3277 | -9/Materials | Evolved 2 slots: Propulsion x1, Utility x1 3579 | -9/Materials | Build established: Scavenger-Mutant 3736 | -9/Materials | Core integrity fell below 50% 4205 | -9/Materials | Repaired Lgt. Treads 4414 | -9/Materials | Discovered new exit (range 4) 4447 | -9/Materials | Core integrity fell below 20% 4610 | -9/Materials | Discovered new exit (range 7) 4622 | -9/Materials | Identified exit to Mines 4992 | -9/Materials | Discovered new exit (range 16) 5025 | -9/Materials | Identified exit to Storage 5466 | -9/Materials | Entered Mines 5469 | -9/Mines | Received a Mining Laser from a helpful Derelict 5512 | -9/Mines | Discovered new exit (range 5) 5588 | -9/Mines | Assembled infested the area 5632 | -9/Mines | Destroyed by D-53 Grenadier with Mini Grenade Launcher Last Messages --------------- 05512_ EXIT=FOUND 05525_ System corrupted: Matter fused (-9). 05544_ K-01 Serf collects debris. 05559_ System corrupted: Component data lost. 05561_ K-01 Serf collects debris. 05581_ H2QCOQ=PIM8P3FFI/=0,2T%OMG,SK# 05588_ ALERT: Infestation in the mines, dispatching Demolisher response squad. 05589_ K-01 Serf collects debris. 05607_ C-30 ARC bursts open, deploying its payload. 05607_ D-53 Grenadier unfolds itself. 05608_ K-01 Serf collects debris. 05610_ K-01 Serf destroyed. 05610_ U-05 Engineer lays Concrete. 05612_ K-01 Serf collects debris. 05624_ The unstable cave ceiling collapses. 05625_ Hvy. Assault Rifle destroyed. 05627_ R-06 Scavenger collects Lgt. Ion Engine. 05628_ Ion Engine destroyed. 05630_ Lgt. Treads destroyed. 05632_ The unstable cave ceiling collapses. Map ----- +----------------------------------------------------+ | ????????????????????????????????? | | ????????????????????????????????? | | ????????????????????????????????? | | ????????????????????????????????? | | ????????????????????????????????? | | ????????????????????????????????? | | ????????????????????????????????? | | ????????????????????????????????? | | ??????????????######????????????? | | ????????????#########???????????? | | ??????????##### ####??????????? | | ??????????### ###??????????? | | ?????####### ##??????????? | | ????######## ##??????????? | | ????### ## ###??????????? | | ????## ##?###???????????? | | ????## ###???????????????? | | ???### ###???????????????? | | ??#### ####??????????????? | | ?#### #####?????????????? | | #### # ###?????????????? | | ### ##?????????????? | | ## dd ######? ???????? | | ### % ##### #?????? | | ?## # ## ##?????? | | ?## @ r ###?????? | | ?## ###??????? | | ?## ##???????? | | ?### ## ###???????? | | ?#### ############???????? | | ??#### ############????????? | | ???#### ###?????????????????? | | ????#### ##??????????????????? | | ?????##### ##??????????????????? | | ??????#### ##??????????????????? | | ????????## %##??????????????????? | | ????????## ##??????????????????? | | ????????## ##??????????????????? | | ?######### ##??????????????????? | | ########## ##??????????????????? | | ## ### #########???????????? | | ## ? ### #########???????????? | | ## """ ### ##???????????? | | ## """ ###### #### ##???????????? | | ## """ ###### #### ##???????????? | | ## ##??## #### ##???????????? | | ## """ ###### #### ##???????????? | | ## """ ###### #### ##???????????? | | ## """ #### ######???????? | | ## ########### #######??????? | +----------------------------------------------------+ Best States ------------- Heat Dissipation 28 Energy Generation 12 Energy Capacity 265 Matter Stores 300 Matter Capacity 300 Sight Range 16 Terrain Scan Density 10 Evasion (%) 50 Recoil Reduction 3 Item Schematics ----------------- None Robot Schematics ------------------ None Fabricated ------------ Nothing Alien Tech Used ----------------- None Achievements -------------- None Challenges ------------ None Game ------ Seed CommDisposableWand Manual? 0 Play Time 00:45:08 Cumulative 72.4 hours Start 2023.08.26 @ 08:50:07 End 2023.08.26 @ 09:38:46 Sessions 1 Manual Loads 0 Difficulty Rogue Special Mode None Game No. 61 Rogue 61 Adventurer 0 Explorer 0 Win Type - Total 1 Types 1/0/0/0/0/0/0/0/0 Lore% 41 Gallery% 34 Achievement% 37 Wizard Run 0 Options --------- ASCII 0 Keyboard 0 Movement Mouse Keybinds 0 Fullscreen 1 Font 16/SmallcapsGlow Map View 84x54 Tactical HUD 1 Map Filters NONE Filters NONE Steam 1 RUN: 2a06a0bc-3e83-407c-bc6e-4b16e640320b